Cogmind - Beta 15 @@@ ROGUE MODE // 2025.09.24 @ 20:21:12 Player: GermanMO Result: Destroyed by BR-J1N(j) with Overtuned Pulse Rifle Performance ------------- Evolutions (0) 0 Regions Visited (3) 600 Robots Destroyed (11) 55 Value Destroyed (213) 213 Prototype IDs (0) 0 Alien Tech Used (0) 0 Bonus (752) 752 TOTAL SCORE: 1620 Bonus ------- Registered with UFD 300 Met Optimus in HQ 500 Friendly Fire -48 Cogmind --------- Core Integrity 0/250 Matter 204/300 Energy 81/200 System Corruption 0% Temperature Hot (231) Movement Core (100) Ox1 Location -8/Scraptown Parts ------- > --- POWER (1) -------- Subdweller Power Source > --- PROPULSION (2) --- (None) > --- UTILITY (2) ------ (None) > --- WEAPON (2) ------- (None) > --- INVENTORY (5) ---- Subdweller Optics Great Maul DRS Beacon (Ready) Peak State ------------ > --- POWER ------------ Subdweller Power Source > --- PROPULSION ------- Airjet > --- UTILITY ---------- Improved Sensor Array Improved Terrain Scanner > --- WEAPON ----------- Proton Cannon Coil Gun > --- INVENTORY -------- Subdweller Optics Great Maul DRS Beacon [Rating: 22] Favorites ----------- Power Subdweller Power Source Engine Subdweller Power Source Propulsion Airjet Leg Aluminum Leg Hover Unit Airjet Flight Unit Flight Unit Utility Improved Sensor Array Device Improved Sensor Array Weapon Assault Rifle Energy Gun Small Laser Energy Cannon Proton Cannon Ballistic Gun Assault Rifle Build | -11 -10 -10 -8 ------- Run | Yrd Mat Sub Scr Slots Evolved . | . . . . Power . | . . . . Propulsion . | . . . . Utility . | . . . . Weapon . | . . . . Parts Attached 18 | . 6 6 6 Power 2 | . 1 1 . Engine 2 | . 1 1 . Core . | . . . . Reactor . | . . . . Propulsion 7 | . 2 4 1 Treads . | . . . . Leg 2 | . 2 . . Wheel . | . . . . Hover 1 | . . . 1 Flight 4 | . . 4 . Utility 3 | . . 1 2 Device 3 | . . 1 2 Storage . | . . . . Processor . | . . . . Hackware . | . . . . Protection . | . . . . Artifact . | . . . . Weapon 6 | . 3 . 3 Energy Gun 2 | . 1 . 1 Energy Cannon 1 | . . . 1 Ballistic Gun 3 | . 2 . 1 Ballistic Cannon . | . . . . Launcher . | . . . . Special Weapon . | . . . . Impact Weapon . | . . . . Slashing Weapon . | . . . . Piercing Weapon . | . . . . Special Melee Weapon . | . . . . Unidentified Prototypes . | . . . . Parts Lost 8 | . . 3 5 Power 1 | . . 1 . Propulsion 2 | . . 1 1 Utility 2 | . . . 2 Weapon 3 | . . 1 2 Highest Loss Streak 5 | . . 3 5 To Critical Strikes . | . . . . Average Backups 2 | 2 2 3 3 Power . | . . . . Propulsion 1 | 1 1 3 . Utility . | . . . . Weapon 1 | . . . 2 Tool/Special . | . . . . Unused Backups 2 | . . 1 1 Power . | . . . . Propulsion 1 | . . 1 . Utility . | . . . . Weapon 1 | . . . 1 Tool/Special . | . . . . Average Slot Usage (%) 56 | . 56 53 57 Engine 12 | . 10 8 14 Leg 3 | . 21 2 . Hover 8 | . . . 13 Flight 5 | . . 25 1 Device 17 | . . . 26 Ballistic Gun 6 | . 20 16 . Peak Build Rating 22 | . 5 7 22 Average Rating 8 | . 4 4 11 On Entrance 2 | . . 5 6 Naked Turns 20 | . 20 . . Heaviest Build 20 | . 6 7 20 Greatest Support 20 | 3 20 20 8 Greatest Overweight (x) 2 | . . . 2 Average Overweight (x) . | . . . . Largest Inventory Capacity 5 | 5 5 5 5 Average Capacity 5 | 5 5 5 5 Most Carried 5 | 5 5 5 5 Average Carried 3 | 2 2 3 3 Final Capacity 5 | 5 5 5 5 Final Carried 5 | 5 4 4 3 Class Distribution -------------------- 95% | Mutant 4% | Scavenger-Mutant Dominant Class ---------------- Mutant | -10/Materials Mutant | -10/Subcaves Mutant | -8/Scraptown Resources | -11 -10 -10 -8 ----------- Run | Yrd Mat Sub Scr Matter Collected 386 | 200 118 68 . Remotely . | . . . . Salvage Created 291 | . 193 98 . Parts 24 | . 16 8 . Haulers Intercepted . | . . . . Recyclers Shooed . | . . . . Parts Field Recycled . | . . . . Retrieved Matter . | . . . . Parts Self-Destructed 6 | . . 6 . Prevented . | . . . . Kills | -11 -10 -10 -8 ------- Run | Yrd Mat Sub Scr Combat Hostiles Destroyed 10 | . 8 2 . Guns 10 | . 8 2 . Classes Destroyed 4 | . 3 1 . Builder 1 | . 1 . . Swarmer 6 | . 6 . . Grunt 2 | . 2 . . Subdweller 2 | . . 2 . Best Kill Streak 6 | . 6 2 . Combat Bots Only 6 | . 6 2 . Max Kills in Single Turn 1 | . 1 1 . Gunslinging . | . . . . Exploded . | . . . . Melee . | . . . . Uniques/NPCs Destroyed . | . . . . Combat | -11 -10 -10 -8 -------- Run | Yrd Mat Sub Scr Hostile Shots Fired 95 | . 58 22 15 Missed 30 | . 17 10 3 Hits 65 | . 41 12 12 Projectile 65 | . 41 12 12 Critical Strikes 1 | . 1 . . Damage Taken 917 | . 356 258 303 Core 257 | . 68 139 50 Absorbed by Shields . | . . . . Core Remaining (%) 100 | 100 . . . Volleys Fired 41 | . 19 18 4 Largest 2 | . 2 2 2 Hottest 105 | . 60 40 105 Shots Fired 68 | . 38 22 8 Gun 64 | . 38 22 4 Cannon 4 | . . . 4 Launcher . | . . . . Special . | . . . . Kinetic 58 | . 32 22 4 Thermal 6 | . 6 . . Explosive . | . . . . Electromagnetic 4 | . . . 4 Robot Hit Streak 9 | . 6 8 9 Robot Miss Streak 3 | . 3 2 2 Penetration Max . | . . . . Secondary Targets 4 | . 4 . . Max Gunslinging Chain 1 | . 1 . . Shots Hit Robots 46 | . 24 17 5 Core Hits 15 | . 11 4 . Critical Kills . | . . . . Critical Parts Destroyed . | . . . . Critical Strikes . | . . . . Melee Attacks . | . . . . Impact . | . . . . Slashing . | . . . . Piercing . | . . . . Sneak Attacks . | . . . . Combat Hostiles . | . . . . Follow-up Attacks . | . . . . Damage Inflicted 538 | . 271 187 80 Guns 526 | . 271 187 68 Cannons 12 | . . . 12 Explosions . | . . . . Melee . | . . . . Ramming . | . . . . Kinetic 472 | . 217 187 68 Thermal 54 | . 54 . . Explosive . | . . . . Electromagnetic 12 | . . . 12 Impact . | . . . . Slashing . | . . . . Piercing . | . . . . Highest Corruption . | . . . . Average Corruption . | . . . . Corruption Purged . | . . . . Corruption Blocked . | . . . . Overload Shots . | . . . . Overflow Damage . | . . . . Projectiles . | . . . . Explosions . | . . . . Melee . | . . . . Knockbacks . | . . . . Impact . | . . . . Kinetic . | . . . . Secondary . | . . . . Self-Inflicted Damage . | . . . . Shots . | . . . . Rammed . | . . . . Targets Rammed . | . . . . Kicked . | . . . . Crushed . | . . . . Highest Temperature 219 | . 70 . 219 Average Temperature 68 | . 45 . 105 Received Heat Transfer 78 | . 30 . 48 Siege Activations . | . . . . Martial Activations . | . . . . Shielding Activations . | . . . . Robots Disrupted . | . . . . Combat Hostiles . | . . . . Robots Corrupted . | . . . . Combat Hostiles . | . . . . Parts Fried . | . . . . Impact Corruptions . | . . . . Robots Melted . | . . . . Combat Hostiles . | . . . . Parts Melted . | . . . . Heat Transferred 125 | . 125 . . Parts Sabotaged . | . . . . Parts Stolen . | . . . . Parts Stripped . | . . . . Power Chain Reactions . | . . . . Alert | -11 -10 -10 -8 ------- Run | Yrd Mat Sub Scr Maximum Alert Level . | . . . . Low Security (%) 100 | 100 100 . . Level 1 . | . . . . Level 2 . | . . . . Level 3 . | . . . . Level 4 . | . . . . Level 5 . | . . . . High Security . | . . . . Max Security . | . . . . Peak Influence 170 | . 170 . . Initial . | . . . . Average 76 | . 84 . . Influence Increases 200 | . 200 . . Destroy 0b10 Robot/C 160 | . 160 . . Destroy 0b10 Robot/NC 5 | . 5 . . Destroy Leader 20 | . 20 . . Lose Combat Pursuer 15 | . 15 . . Influence Decreases 200 | . 80 120 . Entered New Map 58 | . . 58 . Time Decay 112 | . 80 32 . Lost Part 30 | . . 30 . Squads Dispatched . | . . . . Investigation . | . . . . Extermination . | . . . . Reinforcement . | . . . . Assault . | . . . . Garrison . | . . . . Intercept . | . . . . Searches Triggered . | . . . . Construction Impeded . | . . . . Haulers Reinforced . | . . . . Active Scanning Responses . | . . . . Cargo Convoy Interrupts . | . . . . Stealth | -11 -10 -10 -8 --------- Run | Yrd Mat Sub Scr Distress Signals . | . . . . Communications Jammed . | . . . . Distress Signals . | . . . . Times Spotted 21 | . 11 7 3 Peak Tracking Total 7 | . 7 3 6 Tactical Retreats 2 | . 1 1 . Traps | -11 -10 -10 -8 ------- Run | Yrd Mat Sub Scr Traps Triggered . | . . . . Indirectly . | . . . . Trap Hack Attempts . | . . . . Triggered . | . . . . Disarmed . | . . . . Reprogrammed . | . . . . Reused . | . . . . Traps Extracted . | . . . . Installed . | . . . . Triggered . | . . . . Machines | -11 -10 -10 -8 ---------- Run | Yrd Mat Sub Scr Machines Disabled 2 | . . . 2 Max in Single Turn 2 | . . . 2 Machines Repaired . | . . . . Machines Dismantled . | . . . . Machines Sabotaged . | . . . . Overloaded Fab Kills . | . . . . Hacking | -11 -10 -10 -8 --------- Run | Yrd Mat Sub Scr Machines Accessed 6 | . . . 6 Terminals . | . . . . Fabricators . | . . . . Repair Stations . | . . . . Recycling Units . | . . . . Scanalyzers . | . . . . Garrison Access . | . . . . Total Hacks 32 | . . . 32 Successful 32 | . . . 32 Failed . | . . . . Catastrophic . | . . . . Database Lockouts . | . . . . Manual . | . . . . Terminals . | . . . . Fabricators . | . . . . Repair Stations . | . . . . Recycling Units . | . . . . Scanalyzers . | . . . . Garrison Access . | . . . . Terminal Hacks 32 | . . . 32 Record 26 | . . . 26 Robot Analysis 6 | . . . 6 Fabricator Hacks . | . . . . Repair Station Hacks . | . . . . Recycling Unit Hacks . | . . . . Scanalyzer . | . . . . Garrison Access Hacks . | . . . . Unauthorized Hacks . | . . . . Terminals . | . . . . Fabricators . | . . . . Repair Stations . | . . . . Recycling Units . | . . . . Scanalyzers . | . . . . Garrison Access . | . . . . Data Cores Recovered . | . . . . Used . | . . . . Hacking Detections . | . . . . Full Trace Events . | . . . . Feedback Events . | . . . . Feedback Blocked . | . . . . Robot Schematics Acquired . | . . . . Robots Built . | . . . . Authchips . | . . . . Time . | . . . . Total Robot Build Rating . | . . . . Part Schematics Acquired . | . . . . Parts Built . | . . . . Authchips . | . . . . Time . | . . . . Total Part Build Rating . | . . . . Parts Repaired . | . . . . Time . | . . . . Parts Recycled . | . . . . Recycled Matter . | . . . . Retrieved Matter . | . . . . Retrieved Components . | . . . . Parts Scanalyzed . | . . . . Part Schematics Acquired . | . . . . Parts Damaged . | . . . . Bothacking | -11 -10 -10 -8 ------------ Run | Yrd Mat Sub Scr Used RIF Installer . | . . . . Robots Hacked . | . . . . Non-combat . | . . . . Combat . | . . . . Robot Hacks Applied . | . . . . Relay Couplers Released . | . . . . Fabnet Peak Effective % . | . . . . Robots Rewired . | . . . . Allies Hacked . | . . . . Hacks Repelled . | . . . . Allies | -11 -10 -10 -8 -------- Run | Yrd Mat Sub Scr Total Allies . | . . . . Largest Group . | . . . . Highest-Rated Group . | . . . . Highest-Rated Ally . | . . . . Total Orders . | . . . . Ally Attacks . | . . . . Total Damage . | . . . . Kills . | . . . . Allies Corrupted . | . . . . Allies Melted . | . . . . Intel | -11 -10 -10 -8 ------- Run | Yrd Mat Sub Scr Active Infowar (turns) 899 | . . 9 890 Optics 176 | . . 9 167 Sensors 841 | . . . 841 Terrain 723 | . . . 723 Robot Analysis Total 6 | . . . 6 Derelict Logs Recovered . | . . . . Drone Launches . | . . . . Drone Recoveries . | . . . . Exploration | -11 -10 -10 -8 ------------- Run | Yrd Mat Sub Scr Turns Passed 1359 | 21 201 246 891 Spaces Moved 1796 | 33 115 283 1365 Core 67 | 33 34 . . Treads . | . . . . Legs 85 | . 81 4 . Wheels . | . . . . Hover 1339 | . . . 1339 Flight 305 | . . 279 26 Fastest Speed 37 | 50 50 37 37 Average Speed 59 | 50 99 38 60 Slowest Speed 180 | 50 120 120 180 Overloaded Moves . | . . . . Propulsion Burnouts . | . . . . Robots Hopped . | . . . . Potential Cave-ins . | . . . . Cave-ins Triggered . | . . . . Exploration Rate (%) 36 | 3 32 20 90 Regions Visited 3 Branch Regions 2 Pre-discovered Areas 2 | . . . 2 Known Exits Taken . | . . . . Unknown Exits Taken 3 | 1 1 1 . Scrap Searched 3 | . . . 3 Spaces Dug . | . . . . Terrain Destroyed . | . . . . Melee . | . . . . Projectile . | . . . . AOE . | . . . . Terrain Rammed . | . . . . Walls Destroyed . | . . . . Machines Disabled . | . . . . Actions | -11 -10 -10 -8 --------- Run | Yrd Mat Sub Scr Total 2031 | 37 168 400 1426 Wait 143 | . 23 85 35 Move 1793 | 32 114 282 1365 Hop . | . . . . Pick Up 20 | 5 5 3 7 Fast Attach 1 | . . . 1 Attach 16 | . 6 6 4 Detach 6 | . . 4 2 Swap 2 | . . 1 1 Drop 9 | . 1 1 7 Fire 41 | . 19 18 4 Melee . | . . . . Ram . | . . . . Kick . | . . . . Crush . | . . . . Escape Stasis . | . . . . Rewire . | . . . . Trap . | . . . . Miscellaneous . | . . . . Route ------- -11/Scrapyard -10/Materials (discovered 2 exits: [*Mat] / [*Sub]) -10/Subcaves (discovered 2 exits: [*Mat] / *Scr) -8/Scraptown (discovered 2 exits: [*Fac x2]) History --------- Turn | Location | Event 8 | -11/Scrapyard | Discovered new exit (range 15) 22 | -11/Scrapyard | Entered Materials 23 | -10/Materials | Met a group of wandering Federalists 208 | -10/Materials | Discovered new exit (range 10) 210 | -10/Materials | Discovered new exit (range 11) 223 | -10/Materials | Entered Subcaves 224 | -10/Subcaves | Continued accompanying wandering Federalists (6) 225 | -10/Subcaves | Discovered new exit (range 10) 264 | -10/Subcaves | Core integrity fell below 50% 279 | -10/Subcaves | Core integrity fell below 20% 296 | -10/Subcaves | Lost 3 parts (1p1n1w) 301 | -10/Subcaves | Build established: Mutant 463 | -10/Subcaves | Wandering Federalist uncovered a shortcut to Scraptown 469 | -10/Subcaves | Entered Scraptown 551 | -8/Scraptown | Heard Great Nut preacher, LISTEN AND RECITE! 615 | -8/Scraptown | Discovered new exit (range 5) 667 | -8/Scraptown | Visited TADAMA 681 | -8/Scraptown | Visited Red Mages 692 | -8/Scraptown | Visited Cyclists 729 | -8/Scraptown | Visited UFD Registry 747 | -8/Scraptown | Registered with UFD as "Shadowcore" 768 | -8/Scraptown | Entered Cyclist Reading Room 771 | -8/Scraptown | Learned location of Zion (-7) 784 | -8/Scraptown | Visited Awakened 816 | -8/Scraptown | Visited Comm Corps 979 | -8/Scraptown | Visited Science Testing Area 991 | -8/Scraptown | Visited Chapter 10 1061 | -8/Scraptown | Discovered new exit (range 5) 1086 | -8/Scraptown | Visited Modified Component R&D 1112 | -8/Scraptown | Visited Scrap Suit Storage 1132 | -8/Scraptown | Visited Supply Room 1146 | -8/Scraptown | Visited Analyses Database 1252 | -8/Scraptown | Visited Derelict Rescue Squad 1261 | -8/Scraptown | Found DRS Beacon 1274 | -8/Scraptown | Visited Scrapoid Pod Storage 1341 | -8/Scraptown | Met Optimus 1341 | -8/Scraptown | Accepted into 0bPrime 1349 | -8/Scraptown | Attacked by Scraptown defenders 1360 | -8/Scraptown | Destroyed by BR-J1N(j) with Overtuned Pulse Rifle Last Messages --------------- 0bP002 entry for you. You'll get the idea. Slug penetrates Wall. ANNOUNCEMENT: Intruder alert! Defend Scraptown! Slug penetrates UFD Members. UFD Members disabled. Slug penetrates Machine. Machine disabled. Penetrated by Slug. Optimus: "My trust in you was sorely misplaced, Shadowcore!" Slug penetrates Earth. Airjet destroyed. Imp. Sensor Array destroyed. Machine disabled. Slug penetrates Optimus. Machine disabled. Coil Gun destroyed. Proton Cannon destroyed. Imp. Terrain Scanner destroyed. Map ----- +----------------------------------------------------+ | ???#??????????######################## ######## | | ???????????????????????#???#?????????## ######### | | ???????????????????????#??????????????# #"""""""" | | ????????????????###########?#?????????# #"""""""# | | ?????????????????"""""""""#???????????# #" " [ # | | ?????############# " #????"??????# #"[ # | | ?????# ## ""#?#??? ???# #" | | ?????# ## ""#????" ??# #" | | ?????# ## """"#???? "??# #""""" | | ?????# ## " ""#???? "??# #####" | | ?????# ## """"#???" "??# #""""" | | ?????# ## ""#??? "?# # [ | | ?????# ### "#???? ??# # | | ?????# # #????? ??# # | | ?????#### ########### #####?????# ##??# ## ###### | | ????##### ########### ########### ##### ## ###??? | | ????#"""" """"""""""" """"""""""" """"" "" "##### | | ????#" "## #" | | ??#?#" "## | | ????#" "## | | ????#" "## | | #####" | | #"""" """""""""""""""""""""""""""" "## | | #"""" """""""""""""""""""""""""""" "## | | #"""" ""###### ################"" "## #" | | #"""" ""# @;##???????#"" "##### | | #"""" ""# 3 ; #?????#"" "##""" | | #"""" ""# " " #####?????#"" "## " | | #"""" ""# "" ""jX"#??#??####"" "## | | #"""" ""# " "j ######### #"" "## | | #####" "" "" | | ?#??#" "" "" "## | | #####" ""# " " ######### #"" "## == | | ""# "" "" ""##??#??###"" "## == | | ""# "" "" ##?????#?##"" "##### | | ""# X"?#??#????#"" "#???# | | ""# ##????????#"" "##### | | ""###### ################"" "## " | | """""""""""""""""""""""""""" "## " | | """""""""""""""""""""""""""" | | "## | | "## | | "## " | | """"#" ## " | | "???#" # " | | ????#"""""" """"""""""" """"""""""" """""" ##### | | ????####### ########### ########### ###### #???? | | ????????? "??????# #?? ???# #???? | | ??????? "#?????# #??"" # #???? | | ??"??#" "#????## ###" "# #???? | +----------------------------------------------------+ Best States ------------- Heat Dissipation 25 Energy Generation 15 Energy Capacity 200 Matter Stores 300 Matter Capacity 300 Sight Range 21 Robot Scan Range 15 Terrain Scan Range 16 Terrain Scan Density 10 Evasion (%) 62 Item Schematics ----------------- None Robot Schematics ------------------ None Fabricated ------------ Nothing Repaired ---------- Nothing Alien Tech Used ----------------- None Achievements -------------- Armchair Analyst Challenges ------------ None Game ------ Seed ShieldVisualWeb Manual? 0 Play Time 00:31:11 Cumulative 20.2 hours Start 2025.09.24 @ 19:34:08 End 2025.09.24 @ 20:21:12 Sessions 1 Manual Loads 0 Difficulty Rogue Special Mode None Game No. 25 Rogue 7 Adventurer 0 Explorer 18 Win Type - Total 0 Types 0/0/0/0/0/0/0/0/0/0 Lore% 16 Gallery% 21 Achievement% 26 Wizard Run 0 Options --------- Layout 2 ASCII 0 Keyboard 0 Movement Mouse Keybinds 0 Fullscreen 2 Font 24/Smallcaps Map View 50x44 Zoom Use 0% Tactical HUD 0 Map Filters NONE Filters NONE Steam 1 RUN: e695d380-4619-484e-bbd9-ad5fe024c9cd